fUSD/lending_fUSD_20240220
["ID","MTS","AMOUNT","RATE_DAILY","PERIOD"]
[314539641,1708411840742,-500.0,0.0003589,2]
[314539642,1708411840751,-500.0,0.0003589,2]
[314539643,1708411840760,-500.0,0.0003589,2]
[314539644,1708411840772,-401.80813432,0.0003589,2]
[314539645,1708411840781,-500.0,0.0003589,2]
[314539646,1708411840790,-500.0,0.0003589,2]
[314539647,1708411840799,-500.0,0.0003589,2]
[314539648,1708411840809,-500.0,0.0003589,2]
[314539649,1708411840819,-500.0,0.0003589,2]
[314539650,1708411840828,-500.0,0.0003589,2]
[314539651,1708411840838,-500.0,0.0003589,2]
[314539652,1708411840848,-481.39706925,0.0003589,2]
[314539653,1708411840858,-500.0,0.0003589,2]
[314539654,1708411840868,-500.0,0.0003589,2]
[314539655,1708411840877,-209.36173579,0.0003589,2]
[314539656,1708411840887,-500.0,0.0003589,2]
[314539657,1708411840897,-500.0,0.0003589,2]
[314539658,1708411840906,-500.0,0.0003589,2]
[314539659,1708411840915,-500.0,0.0003589,2]
[314539660,1708411840925,-500.0,0.0003589,2]
[314539661,1708411840934,-500.0,0.0003589,2]
[314539662,1708411840943,-500.0,0.0003589,2]
[314539663,1708411840952,-500.0,0.0003589,2]
[314539664,1708411840962,-500.0,0.0003589,2]
[314539665,1708411840971,-500.0,0.0003589,2]
[314539666,1708411840981,-500.0,0.0003589,2]
[314539667,1708411840990,-500.0,0.0003589,2]
[314539668,1708411840999,-500.0,0.0003589,2]
[314539669,1708411841009,-598.86618927,0.0003589,2]
[314539670,1708411841019,-428.0063733,0.0003589,2]
[314539671,1708411841028,-500.0,0.0003589,2]
[314539672,1708411841037,-500.0,0.0003589,2]
[314539673,1708411841047,-319.57801228,0.0003589,2]
[314539674,1708411841056,-500.0,0.0003589,2]
[314539675,1708411841066,-500.0,0.0003589,2]
[314539676,1708411841076,-500.0,0.0003589,2]
[314539677,1708411841085,-500.0,0.0003589,2]
[314539678,1708411841095,-500.0,0.0003589,2]
[314539679,1708411841106,-500.0,0.0003589,2]
[314539680,1708411841115,-500.0,0.0003589,2]
[314539681,1708411841124,-500.0,0.0003589,2]
[314539682,1708411841133,-500.0,0.0003589,2]
[314539683,1708411841142,-500.0,0.0003589,2]
[314539684,1708411841150,-500.0,0.0003589,2]
[314539685,1708411841159,-500.0,0.0003589,2]
[314539686,1708411841168,-500.0,0.0003589,2]
[314539687,1708411841178,-500.0,0.0003589,2]
[314539688,1708411841187,-500.0,0.0003589,2]
[314539689,1708411841197,-500.0,0.0003589,2]
[314539690,1708411841206,-500.0,0.0003589,2]
[314539691,1708411841215,-1022.84,0.0003589,2]
[314539692,1708411841224,-500.0,0.0003589,2]
[314539693,1708411841232,-500.0,0.0003589,2]
[314539694,1708411841241,-500.0,0.0003589,2]
[314539695,1708411841250,-500.0,0.0003589,2]
[314539696,1708411841260,-500.0,0.0003589,2]
[314539697,1708411841269,-500.0,0.0003589,2]
[314539698,1708411841278,-500.0,0.0003589,2]
[314539699,1708411841287,-500.0,0.0003589,2]
[314539700,1708411841295,-500.0,0.0003589,2]
[314539701,1708411841306,-500.0,0.0003589,2]
[314539702,1708411841315,-500.0,0.0003589,2]
[314539703,1708411841325,-500.0,0.0003589,2]
[314539704,1708411841395,-500.0,0.0003589,2]
[314539705,1708411841405,-500.0,0.0003589,2]
[314539706,1708411841414,-500.0,0.0003589,2]
[314539707,1708411841423,-500.0,0.0003589,2]
[314539708,1708411841433,-500.0,0.0003589,2]
[314539709,1708411841442,-500.0,0.0003589,2]
[314539710,1708411841451,-500.0,0.0003589,2]
[314539711,1708411841461,-500.0,0.0003589,2]
[314539712,1708411841473,-500.0,0.0003589,2]
[314539713,1708411841485,-548.6,0.0003589,2]
[314539714,1708411841495,-500.0,0.0003589,2]
[314539715,1708411841504,-500.0,0.0003589,2]
[314539716,1708411841514,-500.0,0.0003589,2]
[314539717,1708411841523,-500.0,0.0003589,2]
[314539718,1708411841532,-531.09905872,0.0003589,2]
[314539719,1708411841542,-500.0,0.0003589,2]
[314539720,1708411841552,-500.0,0.0003589,2]
[314539721,1708411841562,-500.0,0.0003589,2]
[314539722,1708411841573,-500.0,0.0003589,2]
[314539723,1708411841582,-500.0,0.0003589,2]
[314539724,1708411841591,-500.0,0.0003589,2]
[314539725,1708411841600,-500.0,0.0003589,2]
[314539726,1708411841610,-500.0,0.0003589,2]
[314539727,1708411841621,-500.0,0.0003589,2]
[314539728,1708411841630,-500.0,0.0003589,2]
[314539729,1708411841641,-500.0,0.0003589,2]
[314539730,1708411841651,-500.0,0.0003589,2]
[314539731,1708411841661,-500.0,0.0003589,2]
[314539732,1708411841669,-500.0,0.0003589,2]
[314539733,1708411841678,-285.73474917,0.0003589,2]
[314539734,1708411841687,-500.0,0.0003589,2]
[314539735,1708411841696,-500.0,0.0003589,2]
[314539736,1708411841704,-500.0,0.0003589,2]
[314539737,1708411841713,-500.0,0.0003589,2]
[314539738,1708411841722,-500.0,0.0003589,2]
[314539739,1708411841732,-500.0,0.0003589,2]
[314539740,1708411841740,-500.0,0.0003589,2]
[314539741,1708411841749,-500.0,0.0003589,2]
[314539742,1708411841758,-500.0,0.0003589,2]
[314539743,1708411841768,-500.0,0.0003589,2]
[314539744,1708411841779,-500.0,0.0003589,2]
[314539745,1708411841788,-500.0,0.0003589,2]
[314539746,1708411841797,-500.0,0.0003589,2]
[314539747,1708411841806,-500.0,0.0003589,2]
[314539748,1708411841816,-500.0,0.0003589,2]
[314539749,1708411841825,-500.0,0.0003589,2]
[314539750,1708411841835,-500.0,0.0003589,2]
[314539751,1708411841845,-500.0,0.0003589,2]
[314539752,1708411841854,-500.0,0.0003589,2]
[314539753,1708411841864,-500.0,0.0003589,2]
[314539754,1708411841873,-500.0,0.0003589,2]
[314539755,1708411841882,-500.0,0.0003589,2]
[314539756,1708411841891,-500.0,0.0003589,2]
[314539757,1708411841900,-500.0,0.0003589,2]
[314539758,1708411841909,-500.0,0.0003589,2]
[314539759,1708411841919,-500.0,0.0003589,2]
[314539760,1708411841928,-500.0,0.0003589,2]
[314539761,1708411841937,-500.0,0.0003589,2]
[314539762,1708411841946,-500.0,0.0003589,2]
[314539763,1708411841955,-500.0,0.0003589,2]
[314539764,1708411841964,-500.0,0.0003589,2]
[314539765,1708411841973,-500.0,0.0003589,2]
[314539766,1708411841982,-500.0,0.0003589,2]
[314539767,1708411841991,-500.0,0.0003589,2]
[314539768,1708411842000,-500.0,0.0003589,2]
[314539769,1708411842009,-555.48103695,0.0003589,2]
[314539770,1708411842019,-500.0,0.0003589,2]
[314539771,1708411842028,-500.0,0.0003589,2]
[314539772,1708411842037,-424.92229703,0.0003589,2]
[314539773,1708411842047,-500.0,0.0003589,2]
[314539774,1708411842057,-500.0,0.0003589,2]
[314539775,1708411842066,-150.0,0.0003589,2]
[314539776,1708411842076,-500.0,0.0003589,2]
[314539777,1708411842086,-500.0,0.0003589,2]
[314539778,1708411842096,-500.0,0.0003589,2]
[314539779,1708411842105,-500.0,0.0003589,2]
[314539780,1708411842114,-500.0,0.0003589,2]
[314539781,1708411842124,-500.0,0.0003589,2]
[314539782,1708411842133,-406.8773483,0.0003589,2]
[314539783,1708411842143,-524.26,0.0003589,2]
[314539784,1708411842153,-500.0,0.0003589,2]
[314539785,1708411842163,-500.0,0.0003589,2]
[314539786,1708411842174,-500.0,0.0003589,2]
[314539787,1708411842184,-513.87403179,0.0003589,2]
[314539788,1708411842194,-500.0,0.0003589,2]
[314539789,1708411842203,-500.0,0.0003589,2]
[314539790,1708411842212,-500.0,0.0003589,2]
[314539791,1708411842221,-500.0,0.0003589,2]
[314539792,1708411842230,-305.00609495,0.0003589,2]
[314539793,1708411842239,-500.0,0.0003589,2]
[314539794,1708411842248,-520.48014208,0.0003589,2]
[314539795,1708411842258,-500.0,0.0003589,2]
[314539796,1708411842267,-500.0,0.0003589,2]
[314539797,1708411842276,-500.0,0.0003589,2]
[314539798,1708411842285,-500.0,0.0003589,2]
[314539799,1708411842294,-500.0,0.0003589,2]
[314539800,1708411842303,-500.0,0.0003589,2]
[314539801,1708411842312,-500.0,0.0003589,2]
[314539802,1708411842322,-500.0,0.0003589,2]
[314539803,1708411842331,-500.0,0.0003589,2]
[314539804,1708411842340,-500.0,0.0003589,2]
[314539805,1708411842349,-500.0,0.0003589,2]
[314539806,1708411842358,-500.0,0.0003589,2]
[314539807,1708411842367,-500.0,0.0003589,2]
[314539808,1708411842376,-500.0,0.0003589,2]
[314539809,1708411842385,-500.0,0.0003589,2]
[314539810,1708411842395,-500.0,0.0003589,2]
[314539811,1708411842403,-500.0,0.0003589,2]
[314539812,1708411842412,-500.0,0.0003589,2]
[314539813,1708411842421,-500.0,0.0003589,2]
[314539814,1708411842430,-578.31,0.0003589,2]
[314539815,1708411842439,-500.0,0.0003589,2]
[314539816,1708411842448,-500.0,0.0003589,2]
[314539817,1708411842457,-500.0,0.0003589,2]
[314539818,1708411842466,-500.0,0.0003589,2]
[314539819,1708411842475,-500.0,0.0003589,2]
[314539820,1708411842485,-325.71,0.0003589,2]
[314539821,1708411842494,-500.0,0.0003589,2]
[314539822,1708411842503,-502.74,0.0003589,2]
[314539823,1708411842513,-536.5536834,0.0003589,2]
[314539824,1708411842522,-500.0,0.0003589,2]
[314539825,1708411842531,-500.0,0.0003589,2]
[314539826,1708411842540,-550.63,0.0003589,2]
[314539827,1708411842549,-500.0,0.0003589,2]
[314539828,1708411842558,-500.0,0.0003589,2]
[314539829,1708411842567,-500.0,0.0003589,2]
[314539830,1708411842577,-500.0,0.0003589,2]
[314539831,1708411842586,-500.0,0.0003589,2]
[314539832,1708411842596,-500.0,0.0003589,2]
[314539833,1708411842605,-500.0,0.0003589,2]
[314539834,1708411842614,-553.15,0.0003589,2]
[314539835,1708411842623,-500.0,0.0003589,2]
[314539836,1708411842632,-500.0,0.0003589,2]
[314539837,1708411842641,-500.0,0.0003589,2]
[314539838,1708411842651,-500.0,0.0003589,2]
[314539839,1708411842660,-500.0,0.0003589,2]
[314539840,1708411842669,-500.0,0.0003589,2]
[314539841,1708411842678,-886.81,0.0003589,2]
[314539842,1708411842687,-500.0,0.0003589,2]
[314539843,1708411842696,-500.0,0.0003589,2]
[314539844,1708411842705,-500.0,0.0003589,2]
[314539845,1708411842715,-500.0,0.0003589,2]
[314539846,1708411842724,-598.79,0.0003589,2]
[314539847,1708411842733,-500.0,0.0003589,2]
[314539848,1708411842742,-707.49,0.0003589,2]
[314539849,1708411842751,-500.0,0.0003589,2]
[314539850,1708411842761,-989.24,0.0003589,2]
[314539851,1708411842774,-500.0,0.0003589,2]
[314539852,1708411842783,-500.0,0.0003589,2]
[314539853,1708411842792,-1154.02,0.0003589,2]
[314539854,1708411842801,-1017.36,0.0003589,2]
[314539855,1708411842811,-500.0,0.0003589,2]
[314539856,1708411842820,-500.0,0.0003589,2]
[314539857,1708411842830,-500.0,0.0003589,2]
[314539858,1708411842839,-500.0,0.0003589,2]
[314539859,1708411842849,-654.91,0.0003589,2]
[314539860,1708411842859,-500.0,0.0003589,2]
[314539861,1708411842868,-500.0,0.0003589,2]
[314539862,1708411842877,-1183.27,0.0003589,2]
[314539863,1708411842886,-668.7,0.0003589,2]
[314539864,1708411842895,-500.0,0.0003589,2]
[314539865,1708411842904,-670.28,0.0003589,2]
[314539866,1708411842913,-1301.3,0.0003589,2]
[314539867,1708411842922,-500.0,0.0003589,2]
[314539868,1708411842931,-500.0,0.0003589,2]
[314539869,1708411842941,-2677.57,0.0003589,2]
[314539870,1708411842950,-1260.22,0.0003589,2]
[314539871,1708411842959,-500.0,0.0003589,2]
[314539872,1708411842968,-500.0,0.0003589,2]
[314539873,1708411842977,-807.43,0.0003589,2]
[314539874,1708411842987,-500.0,0.0003589,2]
[314539875,1708411842995,-650.92,0.0003589,2]
[314539876,1708411843005,-500.0,0.0003589,2]
[314539877,1708411843014,-1557.17,0.0003589,2]
[314539878,1708411843024,-500.0,0.0003589,2]
[314539879,1708411843033,-500.0,0.0003589,2]
[314539880,1708411843042,-1101.28,0.0003589,2]
[314539881,1708411843051,-500.0,0.0003589,2]
[314539882,1708411843061,-500.0,0.0003589,2]
[314539883,1708411843069,-500.0,0.0003589,2]
[314539884,1708411843080,-500.0,0.0003589,2]
[314539885,1708411843089,-1147.15,0.0003589,2]
[314539886,1708411843098,-500.0,0.0003589,2]
[314539887,1708411843107,-500.0,0.0003589,2]
[314539888,1708411843116,-3126.82,0.0003589,2]
[314539889,1708411843125,-984.85,0.0003589,2]
[314539890,1708411843134,-500.0,0.0003589,2]
[314539891,1708411843143,-610.56,0.0003589,2]
[314539892,1708411843151,-500.0,0.0003589,2]
[314539893,1708411843160,-500.0,0.0003589,2]
[314539894,1708411843170,-500.0,0.0003589,2]
[314539895,1708411843179,-500.0,0.0003589,2]
[314539896,1708411843189,-1070.76,0.0003589,2]
[314539897,1708411843198,-1065.82,0.0003589,2]
[314539898,1708411843207,-483.54452328,0.0003589,2]
[314539899,1708411843216,-500.0,0.0003589,2]
[314539900,1708411843224,-500.0,0.0003589,2]
[314539901,1708411843233,-883.93,0.0003589,2]
[314539902,1708411843242,-1548.6,0.0003589,2]
[314539903,1708411843251,-500.0,0.0003589,2]
[314539904,1708411843260,-500.0,0.0003589,2]
[314539905,1708411843269,-1069.75,0.0003589,2]
[314539906,1708411843278,-385.15857918,0.0003589,2]
[314539907,1708411843287,-500.0,0.0003589,2]
[314539908,1708411843296,-500.0,0.0003589,2]
[314539909,1708411843305,-14843.7,0.0003589,2]
[314539910,1708411843314,-500.0,0.0003589,2]
[314539911,1708411843324,-6156.03,0.0003589,2]
[314539912,1708411843333,-500.0,0.0003589,2]
[314539913,1708411843341,-607.53,0.0003589,2]
[314539914,1708411843351,-500.0,0.0003589,2]
[314539915,1708411843359,-810.41,0.0003589,2]
[314539916,1708411843368,-2045.71,0.0003589,2]
[314539917,1708411843377,-500.0,0.0003589,2]
[314539918,1708411843387,-298.13467017,0.0003589,2]
[314539919,1708411843396,-500.0,0.0003589,2]
[314539920,1708411843405,-729.45,0.0003589,2]
[314539922,1708411843414,-500.0,0.0003589,2]
[314539924,1708411843423,-1283.56,0.0003589,2]
[314539925,1708411843432,-715.74,0.0003589,2]
[314539926,1708411843442,-500.0,0.0003589,2]
[314539927,1708411843450,-2005.96,0.0003589,2]
[314539928,1708411843460,-500.0,0.0003589,2]
[314539929,1708411843469,-500.0,0.0003589,2]
[314539930,1708411843478,-500.0,0.0003589,2]
[314539931,1708411843488,-500.0,0.0003589,2]
[314539932,1708411843497,-788.97,0.0003589,2]
[314539933,1708411843507,-1018.12,0.0003589,2]
[314539934,1708411843517,-707.86,0.0003589,2]
[314539935,1708411843526,-527.77102726,0.0003589,2]
[314539936,1708411843536,-536.07,0.0003589,2]
[314539937,1708411843547,-238.59428471,0.0003589,2]
[314539938,1708411843558,-500.0,0.0003589,2]
[314539939,1708411843567,-500.0,0.0003589,2]
[314539940,1708411843576,-576.24386658,0.0003589,2]
[314539941,1708411843585,-500.0,0.0003589,2]
[314539942,1708411843594,-500.69,0.0003589,2]
[314539943,1708411843610,-500.0,0.0003589,2]
[314539944,1708411843621,-1154.99,0.0003589,2]
[314539945,1708411843630,-643.38,0.0003589,2]
[314539946,1708411843640,-877.31,0.0003589,2]
[314539947,1708411843649,-500.0,0.0003589,2]
[314539948,1708411843658,-500.0,0.0003589,2]
[314539949,1708411843667,-500.0,0.0003589,2]
[314539950,1708411843676,-500.0,0.0003589,2]
[314539951,1708411843686,-2929.78,0.0003589,2]
[314539952,1708411843695,-500.0,0.0003589,2]
[314539953,1708411843704,-500.0,0.0003589,2]
[314539954,1708411843713,-500.0,0.0003589,2]
[314539955,1708411843722,-500.0,0.0003589,2]
[314539956,1708411843731,-4536.19,0.0003589,2]
[314539957,1708411843740,-553.45,0.0003589,2]
[314539958,1708411843749,-775.81,0.0003589,2]
[314539959,1708411843758,-726.1,0.0003589,2]
[314539960,1708411843768,-500.0,0.0003589,2]
[314539961,1708411843779,-697.95,0.0003589,2]
[314539962,1708411843788,-500.0,0.0003589,2]
[314539963,1708411843798,-500.0,0.0003589,2]
[314539964,1708411843807,-500.0,0.0003589,2]
[314539965,1708411843817,-848.02,0.0003589,2]
[314539966,1708411843828,-500.0,0.0003589,2]
[314539967,1708411843838,-500.0,0.0003589,2]
[314539968,1708411843847,-500.0,0.0003589,2]
[314539969,1708411843857,-609.53,0.0003589,2]
[314539970,1708411843868,-500.0,0.0003589,2]
[314539971,1708411843877,-500.0,0.0003589,2]
[314539972,1708411843887,-837.07,0.0003589,2]
[314539973,1708411843896,-1327.38,0.0003589,2]
[314539974,1708411843905,-2344.43,0.0003589,2]
[314539975,1708411843915,-500.0,0.0003589,2]
[314539976,1708411843924,-1275.23,0.0003589,2]
[314539977,1708411843934,-2000.27,0.0003589,2]
[314539978,1708411843944,-2289.28,0.0003589,2]
[314539979,1708411843954,-500.0,0.0003589,2]
[314539980,1708411843963,-611.02,0.0003589,2]
[314539981,1708411843973,-500.0,0.0003589,2]
[314539982,1708411843982,-753.08,0.0003589,2]
[314539983,1708411843991,-500.0,0.0003589,2]
[314539984,1708411844001,-630.26,0.0003589,2]
[314539985,1708411844010,-500.0,0.0003589,2]
[314539986,1708411844020,-500.0,0.0003589,2]
[314539987,1708411844029,-610.78,0.0003589,2]
[314539988,1708411844039,-705.71,0.0003589,2]
[314539989,1708411844049,-2532.64,0.0003589,2]
[314539990,1708411844058,-842.04,0.0003589,2]
[314539991,1708411844067,-500.0,0.0003589,2]
[314539992,1708411844077,-500.0,0.0003589,2]
[314539993,1708411844087,-500.0,0.0003589,2]
[314539994,1708411844097,-716.77,0.0003589,2]
[314539995,1708411844106,-500.0,0.0003589,2]
[314539996,1708411844116,-500.0,0.0003589,2]
[314539997,1708411844126,-500.0,0.0003589,2]
[314539998,1708411844136,-500.0,0.0003589,2]
[314539999,1708411844146,-1124.22,0.0003589,2]
[314540000,1708411844155,-500.0,0.0003589,2]
[314540001,1708411844165,-1012.88,0.0003589,2]
[314540002,1708411844176,-970.85,0.0003589,2]
[314540003,1708411844185,-1716.19,0.0003589,2]
[314540004,1708411844194,-500.0,0.0003589,2]
[314540005,1708411844204,-500.0,0.0003589,2]
[314540006,1708411844214,-500.0,0.0003589,2]
[314540007,1708411844223,-500.0,0.0003589,2]
[314540008,1708411844232,-691.21,0.0003589,2]
[314540009,1708411844242,-500.0,0.0003589,2]
[314540010,1708411844251,-2284.06,0.0003589,2]
[314540011,1708411844263,-1159.36,0.0003589,2]
[314540012,1708411844274,-500.0,0.0003589,2]
[314540013,1708411844285,-712.39,0.0003589,2]
[314540014,1708411844295,-545.30621924,0.0003589,2]
[314540015,1708411844304,-816.59,0.0003589,2]
[314540016,1708411844314,-500.0,0.0003589,2]
[314540017,1708411844324,-500.0,0.0003589,2]
[314540018,1708411844334,-817.0,0.0003589,2]
[314540019,1708411844344,-500.0,0.0003589,2]
[314540020,1708411844353,-1377.68,0.0003589,2]
[314540021,1708411844363,-500.0,0.0003589,2]
[314540022,1708411844373,-500.0,0.0003589,2]
[314540023,1708411844383,-500.0,0.0003589,2]
[314540024,1708411844393,-698.35,0.0003589,2]
[314540025,1708411844403,-500.0,0.0003589,2]
[314540026,1708411844413,-500.0,0.0003589,2]
[314540027,1708411844423,-843.78,0.0003589,2]
[314540028,1708411844433,-663.83,0.0003589,2]
[314540029,1708411844443,-796.0,0.0003589,2]
[314540030,1708411844453,-500.0,0.0003589,2]
[314540031,1708411844464,-3676.53,0.0003589,2]
[314540032,1708411844474,-500.0,0.0003589,2]
[314540033,1708411844484,-500.0,0.0003589,2]
[314540034,1708411844495,-500.0,0.0003589,2]
[314540035,1708411844506,-500.0,0.0003589,2]
[314540036,1708411844516,-500.0,0.0003589,2]
[314540037,1708411844526,-1883.21,0.0003589,2]
[314540038,1708411844537,-178.17304002,0.0003589,2]
[314540039,1708411844548,-5824.02,0.0003589,2]
[314540040,1708411844560,-500.0,0.0003589,2]
[314540041,1708411844571,-500.0,0.0003589,2]
[314540042,1708411844586,-597.18,0.0003589,2]
[314540043,1708411844599,-500.0,0.0003589,2]
[314540044,1708411844610,-807.52,0.0003589,2]
[314540045,1708411844620,-500.0,0.0003589,2]
[314540046,1708411844631,-1102.3,0.0003589,2]
[314540047,1708411844641,-500.0,0.0003589,2]
[314540048,1708411844651,-500.0,0.0003589,2]
[314540049,1708411844662,-500.0,0.0003589,2]
[314540050,1708411844672,-501.22,0.0003589,2]
[314540051,1708411844683,-500.0,0.0003589,2]
[314540052,1708411844693,-566.92,0.0003589,2]
[314540053,1708411844704,-468.74193769,0.0003589,2]
[314540054,1708411844714,-500.0,0.0003589,2]
[314540055,1708411844724,-500.0,0.0003589,2]
[314540056,1708411844733,-500.0,0.0003589,2]
[314540057,1708411844743,-1224.12,0.0003589,2]
[314540058,1708411844753,-500.0,0.0003589,2]
[314540059,1708411844764,-500.0,0.0003589,2]
[314540060,1708411844776,-2546.25,0.0003589,2]
[314540061,1708411844785,-560.59,0.0003589,2]
[314540062,1708411844795,-500.0,0.0003589,2]
[314540063,1708411844804,-500.0,0.0003589,2]
[314540064,1708411844814,-500.0,0.0003589,2]
[314540065,1708411844826,-500.0,0.0003589,2]
[314540066,1708411844836,-500.0,0.0003589,2]
[314540067,1708411844848,-610.57,0.0003589,2]
[314540068,1708411844858,-500.0,0.0003589,2]
[314540069,1708411844867,-500.0,0.0003589,2]
[314540070,1708411844877,-500.0,0.0003589,2]
[314540071,1708411844887,-500.0,0.0003589,2]
[314540072,1708411844897,-589.71,0.0003589,2]
[314540073,1708411844906,-1085.54,0.0003589,2]
[314540074,1708411844916,-1251.58,0.0003589,2]
[314540075,1708411844926,-2584.84,0.0003589,2]
[314540076,1708411844936,-795.38,0.0003589,2]
[314540077,1708411844945,-500.0,0.0003589,2]
[314540078,1708411844955,-4519.14,0.0003589,2]
[314540079,1708411844965,-500.0,0.0003589,2]
[314540080,1708411844975,-667.47,0.0003589,2]
[314540081,1708411844985,-500.0,0.0003589,2]
[314540082,1708411844994,-500.0,0.0003589,2]
[314540083,1708411845003,-577.37,0.0003589,2]
[314540084,1708411845013,-1099.0,0.0003589,2]
[314540085,1708411845022,-500.0,0.0003589,2]
[314540086,1708411845033,-500.0,0.0003589,2]
[314540087,1708411845043,-500.0,0.0003589,2]
[314540088,1708411845054,-500.0,0.0003589,2]
[314540089,1708411845066,-878.48,0.0003589,2]
[314540090,1708411845078,-500.0,0.0003589,2]
[314540091,1708411845087,-500.0,0.0003589,2]
[314540092,1708411845097,-1117.3,0.0003589,2]
[314540093,1708411845107,-500.0,0.0003589,2]
[314540094,1708411845117,-540.14,0.0003589,2]
[314540095,1708411845126,-500.0,0.0003589,2]
[314540096,1708411845136,-500.0,0.0003589,2]
[314540097,1708411845146,-500.0,0.0003589,2]
[314540098,1708411845155,-500.0,0.0003589,2]
[314540099,1708411845165,-500.0,0.0003589,2]
[314540100,1708411845175,-500.0,0.0003589,2]
[314540101,1708411845185,-500.0,0.0003589,2]
[314540102,1708411845195,-500.0,0.0003589,2]
[314540103,1708411845205,-500.0,0.0003589,2]
[314540104,1708411845214,-500.0,0.0003589,2]
[314540105,1708411845224,-500.0,0.0003589,2]
[314540106,1708411845233,-420.0,0.0003589,2]
[314540107,1708411845243,-151.0212031,0.00035898,6]
[314540108,1708411845253,-3159.84971319,0.00035913,8]
[314540109,1708411845263,-470.666561,0.00035958,2]
[314540110,1708411845272,-1853.834161,0.00035958,2]
[314540111,1708411845282,-2576.176139,0.00035958,2]
[314540112,1708411845293,-695.417949,0.00035958,2]
[314540113,1708411845302,-606.516932,0.00035958,2]
[314540114,1708411845312,-496.727106,0.00035958,2]
[314540115,1708411845322,-159.41,0.0003597,2]
[314540116,1708411845332,-151.0212031,0.00035998,6]
[314540117,1708411845342,-420.0,0.00036,2]
[314540118,1708411845352,-176.04729528,0.00036029,2]
[314540119,1708411845362,-1080.27270627,0.00036055,2]
[314540120,1708411845372,-151.0212031,0.00036098,6]
[314540121,1708411845382,-3159.84971319,0.00036128,9]
[314540122,1708411845392,-2000.0,0.00036158,2]
[314540123,1708411845401,-200.0,0.00036158,2]
[314540124,1708411845411,-2000.0,0.00036158,2]
[314540125,1708411845421,-200.0,0.00036158,2]
[314540126,1708411845431,-500.0,0.00036164,2]
[314540127,1708411845441,-413.04235593,0.00036164,2]
[314540128,1708411845451,-595.15245877,0.00036164,2]
[314540129,1708411845460,-500.0,0.00036164,2]
[314540130,1708411845470,-500.0,0.00036164,2]
[314540131,1708411845480,-500.0,0.00036164,2]
[314540132,1708411845490,-500.0,0.00036164,2]
[314540133,1708411845499,-500.0,0.00036164,2]
[314540134,1708411845509,-500.0,0.00036164,2]
[314540135,1708411845519,-500.0,0.00036164,2]
[314540136,1708411845529,-222.61903856,0.00036164,2]
[314540137,1708411845539,-285.56172189,0.00036164,2]
[314540138,1708411845549,-500.0,0.00036164,2]
[314540139,1708411845560,-500.0,0.00036164,2]
[314540140,1708411845570,-500.0,0.00036164,2]
[314540141,1708411845581,-500.0,0.00036164,2]
[314540142,1708411845591,-500.0,0.00036164,2]